Cogmind - Beta 12 @@@ ROGUE MODE // 2023.10.24 @ 00:19:19 Player: FrostySpirit Result: Destroyed by as-03951 with Assembled Maul Performance ------------- Evolutions (0) 0 Regions Visited (2) 400 Robots Destroyed (10) 50 Value Destroyed (227) 227 Prototype IDs (0) 0 Alien Tech Used (0) 0 Bonus (0) 0 TOTAL SCORE: 677 Bonus ------- None Cogmind --------- Core Integrity 0/250 Matter 181/300 Energy 85/125 System Corruption 0% Temperature Cool (0) Movement Rolling (80) Location -10/Mines Parts ------- > --- POWER (1) -------- Light Ion Engine > --- PROPULSION (2) --- Wheel > --- UTILITY (2) ------ Structural Scanner > --- WEAPON (2) ------- (None) > --- INVENTORY (5) ---- Ion Engine Light Ion Engine Large Storage Unit Seismic Detector Mining Laser Peak State ------------ > --- POWER ------------ Ion Engine > --- PROPULSION ------- Wheel Compact Wheel > --- UTILITY ---------- Structural Scanner Improved Terrain Scanner > --- WEAPON ----------- Assault Rifle Enhanced Flamer > --- INVENTORY -------- Large Storage Unit Seismic Detector Mining Laser [Rating: 11] Favorites ----------- Power Light Ion Engine Engine Light Ion Engine Propulsion Compact Wheel Wheel Compact Wheel Flight Unit Flight Unit Utility Improved Terrain Scanner Device Improved Terrain Scanner Storage Small Storage Unit Weapon Light Assault Rifle Energy Gun Medium Laser Ballistic Gun Light Assault Rifle Launcher Grenade Launcher Special Weapon Mining Laser Build | -11 -10 -10 ------- Run | Jun Mat Min Slots Evolved . | . . . Power . | . . . Propulsion . | . . . Utility . | . . . Weapon . | . . . Parts Attached 23 | 9 6 8 Power 4 | 1 1 2 Engine 4 | 1 1 2 Core . | . . . Reactor . | . . . Propulsion 5 | 2 1 2 Treads . | . . . Leg . | . . . Wheel 4 | 2 1 1 Hover . | . . . Flight 1 | . . 1 Utility 6 | 3 1 2 Device 5 | 2 1 2 Storage 1 | 1 . . Processor . | . . . Hackware . | . . . Protection . | . . . Artifact . | . . . Weapon 8 | 3 3 2 Energy Gun 2 | 1 1 . Energy Cannon . | . . . Ballistic Gun 2 | 1 1 . Ballistic Cannon . | . . . Launcher 1 | . 1 . Special Weapon 3 | 1 . 2 Impact Weapon . | . . . Slashing Weapon . | . . . Piercing Weapon . | . . . Special Melee Weapon . | . . . Unidentified Prototypes . | . . . Parts Lost 6 | . 3 3 Power 1 | . 1 . Propulsion 2 | . 1 1 Utility . | . . . Weapon 3 | . 1 2 Highest Loss Streak 3 | . 2 3 To Critical Strikes . | . . . Average Slot Usage (%) 88 | . 91 86 Engine 10 | . 8 14 Wheel 23 | . 25 21 Flight 1 | . . 3 Device 26 | . 28 25 Energy Gun 4 | . 5 4 Ballistic Gun 12 | . 14 9 Launcher 1 | . 2 . Special Weapon 6 | . 6 6 Naked Turns . | . . . Heaviest Build 12 | 12 11 11 Greatest Support 26 | 26 26 26 Greatest Overweight (x) 2 | 2 . 1 Average Overweight (x) . | . . . Largest Inventory Capacity 8 | 8 5 5 Average Capacity 5 | 5 5 5 Most Carried 5 | 1 5 5 Average Carried 1 | . 3 3 Final Capacity 5 | 5 5 5 Final Carried 5 | 1 3 5 Class Distribution -------------------- 100% | Mutant Dominant Class ---------------- Mutant | -10/Materials Mutant | -10/Mines Resources | -11 -10 -10 ----------- Run | Jun Mat Min Matter Collected 386 | 257 88 41 Remotely . | . . . Salvage Created 258 | 27 211 20 Parts 19 | 5 8 6 Haulers Intercepted . | . . . Recyclers Shooed 1 | . 1 . Parts Field Recycled . | . . . Retrieved Matter . | . . . Parts Self-Destructed . | . . . Prevented . | . . . Kills | -11 -10 -10 ------- Run | Jun Mat Min Combat Hostiles Destroyed 6 | . 5 1 Guns 3 | . 2 1 AOE 3 | . 3 . Classes Destroyed 5 | 1 2 2 Worker 2 | . 2 . Builder 1 | . . 1 Tunneler 1 | 1 . . Swarmer 1 | . . 1 Grunt 5 | . 5 . Best Kill Streak 5 | 1 5 2 Combat Bots Only 4 | . 4 1 Max Kills in Single Turn 2 | 1 2 1 Gunslinging . | . . . Exploded 1 | . 1 . Melee . | . . . Uniques/NPCs Destroyed . | . . . Combat | -11 -10 -10 -------- Run | Jun Mat Min Damage Taken 737 | . 477 260 Core 251 | . 105 146 Absorbed by Shields . | . . . Core Remaining (%) 100 | 100 . . Volleys Fired 27 | 2 21 4 Largest 2 | 2 2 2 Hottest 100 | 70 70 100 Shots Fired 47 | 4 35 8 Gun 38 | 4 30 4 Cannon . | . . . Launcher 5 | . 5 . Special 4 | . . 4 Kinetic 27 | 2 21 4 Thermal 15 | 2 9 4 Explosive 5 | . 5 . Electromagnetic . | . . . Robot Hit Streak 7 | 3 7 5 Robot Miss Streak 3 | . 3 1 Penetration Max . | . . . Secondary Targets . | . . . Shots Hit Robots 31 | 3 23 5 Core Hits 18 | 1 14 3 Critical Kills . | . . . Critical Parts Destroyed . | . . . Critical Strikes 1 | . 1 . Burn 1 | . 1 . Melee Attacks . | . . . Impact . | . . . Slashing . | . . . Piercing . | . . . Sneak Attacks . | . . . Combat Hostiles . | . . . Follow-up Attacks . | . . . Damage Inflicted 660 | 35 565 60 Guns 308 | 35 234 39 Cannons . | . . . Explosions 331 | . 331 . Melee . | . . . Ramming . | . . . Kinetic 208 | 10 159 39 Thermal 121 | 25 75 21 Explosive 331 | . 331 . Electromagnetic . | . . . Impact . | . . . Slashing . | . . . Piercing . | . . . Highest Corruption . | . . . Average Corruption . | . . . Corruption Purged . | . . . Corruption Blocked . | . . . Overload Shots . | . . . Overflow Damage 46 | . 46 . Projectiles . | . . . Explosions 46 | . 46 . Melee . | . . . Knockbacks . | . . . Impact . | . . . Kinetic . | . . . Secondary . | . . . Self-Inflicted Damage 135 | . 135 . Shots 4 | . 4 . Rammed . | . . . Targets Rammed . | . . . Kicked . | . . . Crushed . | . . . Highest Temperature 58 | 40 48 58 Average Temperature 20 | 23 16 28 Received Heat Transfer 189 | . 189 . Siege Activations . | . . . Robots Corrupted . | . . . Combat Hostiles . | . . . Parts Fried . | . . . Impact Corruptions . | . . . Robots Melted . | . . . Combat Hostiles . | . . . Parts Melted . | . . . Heat Transferred 530 | 74 296 160 Parts Sabotaged . | . . . Parts Stolen . | . . . Parts Stripped . | . . . Power Chain Reactions . | . . . Missiles Intercepted . | . . . Alert | -11 -10 -10 ------- Run | Jun Mat Min Peak Influence 300 | 5 300 172 Initial 117 | . . 117 Average 36 | 1 140 141 Maximum Alert Level 1 | . 1 . Low Security (%) 93 | 100 52 100 Level 1 6 | . 47 . Level 2 . | . . . Level 3 . | . . . Level 4 . | . . . Level 5 . | . . . High Security . | . . . Max Security . | . . . Squads Dispatched 4 | . 4 . Investigation 2 | . 2 . Extermination . | . . . Reinforcement 2 | . 2 . Assault . | . . . Garrison . | . . . Intercept . | . . . Searches Triggered . | . . . Construction Impeded . | . . . Haulers Reinforced . | . . . Active Scanning Responses . | . . . Cargo Convoy Interrupts . | . . . Stealth | -11 -10 -10 --------- Run | Jun Mat Min Distress Signals . | . . . Communications Jammed . | . . . Distress Signals . | . . . Times Spotted 28 | . 11 17 Peak Tracking Total 6 | . 6 5 Tactical Retreats 3 | . 1 2 Traps | -11 -10 -10 ------- Run | Jun Mat Min Traps Triggered . | . . . Indirectly . | . . . Trap Hack Attempts . | . . . Triggered . | . . . Disarmed . | . . . Reprogrammed . | . . . Reused . | . . . Traps Extracted . | . . . Installed . | . . . Triggered . | . . . Machines | -11 -10 -10 ---------- Run | Jun Mat Min Machines Disabled 2 | . 2 . Max in Single Turn 1 | . 1 . Machines Repaired . | . . . Machines Sabotaged . | . . . Overloaded Fab Kills . | . . . Hacking | -11 -10 -10 --------- Run | Jun Mat Min Machines Accessed 3 | . 3 . Terminals 2 | . 2 . Fabricators . | . . . Repair Stations . | . . . Recycling Units 1 | . 1 . Scanalyzers . | . . . Garrison Access . | . . . Total Hacks 10 | . 10 . Successful 5 | . 5 . Failed 5 | . 5 . Catastrophic . | . . . Database Lockouts . | . . . Manual . | . . . Terminals 7 | . 7 . Fabricators . | . . . Repair Stations . | . . . Recycling Units 3 | . 3 . Scanalyzers . | . . . Garrison Access . | . . . Terminal Hacks 4 | . 4 . Alert Level 1 | . 1 . Locate Traps 2 | . 2 . Zone Layout 1 | . 1 . Fabricator Hacks . | . . . Repair Station Hacks . | . . . Recycling Unit Hacks 1 | . 1 . Report Inventory 1 | . 1 . Scanalyzer . | . . . Garrison Access Hacks . | . . . Unauthorized Hacks . | . . . Terminals . | . . . Fabricators . | . . . Repair Stations . | . . . Recycling Units . | . . . Scanalyzers . | . . . Garrison Access . | . . . Data Cores Recovered . | . . . Used . | . . . Hacking Detections 3 | . 3 . Full Trace Events 2 | . 2 . Feedback Events . | . . . Feedback Blocked . | . . . Robot Schematics Acquired . | . . . Robots Built . | . . . Authchips . | . . . Time . | . . . Total Robot Build Rating . | . . . Part Schematics Acquired . | . . . Parts Built . | . . . Authchips . | . . . Time . | . . . Total Part Build Rating . | . . . Parts Repaired . | . . . Time . | . . . Parts Recycled . | . . . Recycled Matter . | . . . Retrieved Matter . | . . . Retrieved Components . | . . . Parts Scanalyzed . | . . . Part Schematics Acquired . | . . . Parts Damaged . | . . . Bothacking | -11 -10 -10 ------------ Run | Jun Mat Min Used RIF Installer . | . . . Robots Hacked . | . . . Non-combat . | . . . Combat . | . . . Robot Hacks Applied . | . . . Relay Couplers Released . | . . . Fabnet Peak Effective % . | . . . Robots Rewired . | . . . Allies Hacked . | . . . Hacks Repelled . | . . . Allies | -11 -10 -10 -------- Run | Jun Mat Min Total Allies . | . . . Largest Group . | . . . Highest-Rated Group . | . . . Highest-Rated Ally . | . . . Total Orders . | . . . Ally Attacks . | . . . Total Damage . | . . . Kills . | . . . Allies Corrupted . | . . . Allies Melted . | . . . Intel | -11 -10 -10 ------- Run | Jun Mat Min Robot Analysis Total . | . . . Derelict Logs Recovered 1 | . . 1 Drone Launches . | . . . Drone Recoveries . | . . . Exploration | -11 -10 -10 ------------- Run | Jun Mat Min Turns Passed 1790 | 1343 248 199 Spaces Moved 678 | 263 187 228 Core 12 | 12 . . Treads . | . . . Legs . | . . . Wheels 576 | 251 187 138 Hover . | . . . Flight 90 | . . 90 Fastest Speed 40 | 50 90 40 Average Speed 83 | 90 90 70 Slowest Speed 150 | 150 100 120 Overloaded Moves . | . . . Propulsion Burnouts . | . . . Robots Hopped 1 | . . 1 Cave-ins Triggered . | . . . Exploration Rate (%) 34 | 28 35 39 Regions Visited 2 Branch Regions 1 Pre-discovered Areas 1 | . . 1 Known Exits Taken . | . . . Unknown Exits Taken 2 | 1 1 . Scrap Searched . | . . . Spaces Dug . | . . . Terrain Destroyed 63 | . 63 . Melee . | . . . Projectile . | . . . AOE 63 | . 63 . Terrain Rammed . | . . . Walls Destroyed . | . . . Machines Disabled . | . . . Actions | -11 -10 -10 --------- Run | Jun Mat Min Total 1847 | 1361 231 255 Wait 1105 | 1086 11 8 Move 674 | 262 186 226 Hop 1 | . . 1 Pick Up 7 | 1 5 1 Fast Attach 14 | 8 2 4 Attach 3 | . 1 2 Detach 1 | . . 1 Swap 6 | 1 3 2 Drop 9 | 1 2 6 Fire 27 | 2 21 4 Melee . | . . . Ram . | . . . Kick . | . . . Crush . | . . . Escape Stasis . | . . . Rewire . | . . . Trap . | . . . Miscellaneous . | . . . Route ------- -11/Junkyard -10/Materials -10/Mines History --------- Turn | Location | Event 2 | -11/Junkyard | Met Revision 17 10 | -11/Junkyard | Discovered new exit (range 16) 1344 | -11/Junkyard | Entered Materials 1345 | -10/Materials | Build established: Mutant 1526 | -10/Materials | Discovered new exit (range 13) 1592 | -10/Materials | Entered Mines 1651 | -10/Mines | A weapon hastily lodged in a ceiling crevice suddenly fell to the ground 1714 | -10/Mines | Learned location of Zion (-7) 1730 | -10/Mines | Assembled infested the area 1735 | -10/Mines | Assisted by a Guerilla fighting off Assembled 1741 | -10/Mines | Core integrity fell below 50% 1772 | -10/Mines | Lost 3 parts (1n2w) 1790 | -10/Mines | Core integrity fell below 20% 1791 | -10/Mines | Destroyed by as-03951 with Assembled Maul Last Messages --------------- 01748_ as-76716 destroyed. 01748_ as-79601 destroyed. 01748_ as-79076 destroyed. 01750_ as-17686 destroyed. 01751_ The unstable cave ceiling collapses. 01754_ Acquired 14 matter. 01756_ The unstable cave ceiling collapses. 01761_ HV Slug penetrates Wall. 01763_ Acquired 4 matter. 01763_ Acquired 3 matter. 01766_ K-01 Serf collects debris. 01781_ Acquired Structural Scanner. 01783_ K-01 Serf collects debris. 01784_ Dropped Structural Scanner. 01786_ Acquired Wheel. 01787_ K-01 Serf collects debris. 01789_ Acquired Structural Scanner. 01789_ Knocked back. 01790_ Dropped Structural Scanner. 01791_ Dropped Flight Unit. Map ----- +----------------------------------------------------+ | ??????????###### ##???## ##??? | | ??????????####### ###???##### ##### ##??? | | ??????????????########???##### ##### ##?#? | | ????#??????????######???????## ####???????? | | ???????????????#????????????## ##?? ##??? | | #???? ???????#?????#????????#### ##?? ##??? | | ????????????????????????????#### ##?? ##??? | | ??????????????????????????#??### ### ##??? | | ????????????????????????????#### ### ##??? | | ????????????????????? ??????### ##??? | | ???????????????????????????### ##??? | | ??????????????????????????#### #####??? | | ??????????????????????????### #####??? | | ??????????????????????????## ###?????? | | ??????????????????????????## ####??#??? | | ????????????????????????#?### ###??????? | | ??????????????????????????### ##??????? | | ??????????????????????????####[ ##??????? | | ???????????????????????????#### ###??????? | | ????????????????????????????#### ###????##? | | ????????????????????????#????### ##???????? | | ????????????????????#??######### ##???????? | | ??????????????????????########## ###??????? | | ???????????????????###### ### ###??????? | | ??????????????????###### ##????#??? | | ????????????## ###### @a ## ##???????? | | ????????????## ##### ! aa ### ##??#????? | | ????????????## t = # ### ##??????#? | | ????????????## k ##a ### ##??#????? | | ????????????######### ### ##???????? | | ????????????############### ######???????? | | ## ???????????############# ### ?? ??#?? | | ## ?????######### ###?## ##?? ?? ?????? | | # ?????######## ##### #####??????????#? | | " ?????## ## ##### #####???????????? | | ????## ## ### ##??????????????? | | ????## ## #### ####??????????#??? | | ##### ## #### ############# ##?? | | ? ### # ## ## ############# ##?? | | ?## ###" # ## ##?? | | ?## ### ################?? | | ?### "# =###############??? | | ??### % ######??????????? | | ???#### ## = % ##??????????? | | ???##### ## # ## ##?????????#? | | ?????### ## = ## ##??????????? | | ??????### ### # ! # ????????????? | | ??????#### =#### # ???#????????? | | ???????###= ####### ### ????????????? | | ????????############ ## ## ????????????? | +----------------------------------------------------+ Best States ------------- Heat Dissipation 25 Energy Generation 10 Energy Capacity 250 Matter Stores 285 Matter Capacity 300 Sight Range 16 Terrain Scan Range 16 Terrain Scan Density 10 Evasion (%) 62 Item Schematics ----------------- None Robot Schematics ------------------ None Fabricated ------------ Nothing Alien Tech Used ----------------- None Achievements -------------- None Challenges ------------ None Game ------ Seed FieldHelicalCharge Manual? 0 Play Time 00:14:38 Cumulative 7.8 hours Start 2023.10.24 @ 00:06:23 End 2023.10.24 @ 00:19:19 Sessions 1 Manual Loads 0 Difficulty Rogue Special Mode None Game No. 13 Rogue 13 Adventurer 0 Explorer 0 Win Type - Total 0 Types 0/0/0/0/0/0/0/0/0 Lore% 6 Gallery% 16 Achievement% 14 Wizard Run 0 Options --------- ASCII 0 Keyboard 0 Movement Mouse Keybinds 0 Fullscreen 1 Font 18/TerminusBold Map View 76x50 Tactical HUD 1 Map Filters NONE Filters NONE Steam 1 RUN: 28eec19b-af5e-4271-9f81-54c5ec9925a3